bitfinex/quotes_BTCUSD_20230901
["timestamp","ask_amount","ask_price","bid_price","bid_amount"]
[1693580267220,0.38708678,25744.0,25742.0,0.2566]
[1693580267430,0.22533812,25748.0,25742.0,0.2566]
[1693580267642,0.22533812,25748.0,25743.0,0.15483471]
[1693580267643,0.38708678,25748.0,25743.0,0.15483471]
[1693580268053,0.25160866,25747.0,25743.0,0.37823471]
[1693580268234,0.63869544,25747.0,25743.0,0.2234]
[1693580270101,0.63869544,25747.0,25743.0,0.2614]
[1693580270666,0.37933369,25749.0,25743.0,0.41623471]
[1693580270833,0.22633369,25749.0,25744.0,0.15483471]
[1693580271031,0.27968755,25746.0,25744.0,0.15483471]
[1693580271236,0.27968755,25746.0,25743.0,0.2234]
[1693580271999,0.09113082,25749.0,25743.0,0.2234]
[1693580272246,0.38708678,25748.0,25744.0,0.15483471]
[1693580272459,0.21485347,25747.0,25743.0,0.2234]
[1693580272617,0.20567369,25746.0,25743.0,0.2234]
[1693580272800,0.20567369,25746.0,25743.0,0.2614]
[1693580273232,0.38708678,25748.0,25743.0,0.2614]
[1693580273430,0.38708678,25748.0,25743.0,0.41623471]
[1693580273638,0.38708678,25748.0,25743.0,0.37823471]
[1693580273839,0.38708678,25748.0,25743.0,0.2234]
[1693580274040,0.21941533,25746.0,25743.0,0.23239177]
[1693580274259,0.25929481,25745.0,25743.0,0.23239177]
[1693580274467,0.62858678,25744.0,25743.0,0.025]
[1693580274672,1.34158965,25744.0,25743.0,0.025]
[1693580274883,1.93705591,25744.0,25743.0,0.025]
[1693580275090,2.46671404,25744.0,25743.0,0.025]
[1693580275308,2.46383404,25744.0,25743.0,0.025]
[1693580275526,0.04,25740.0,25732.0,0.9715]
[1693580275758,0.40708678,25739.0,25732.0,0.9715]
[1693580276170,0.56378678,25739.0,25733.0,0.2168]
[1693580277001,0.56378678,25739.0,25733.0,0.37163471]
[1693580277214,0.55878678,25739.0,25733.0,0.37163471]
[1693580277416,0.55878678,25739.0,25733.0,0.52712171]
[1693580278239,0.24196874,25738.0,25733.0,0.52712171]
[1693580278446,0.24196874,25738.0,25733.0,0.372287]
[1693580278447,0.38708678,25737.0,25733.0,0.372287]
[1693580279081,0.38708678,25737.0,25733.0,0.384287]
[1693580279697,0.38708678,25737.0,25733.0,0.372287]
[1693580279906,0.38708678,25737.0,25733.0,0.55212171]
[1693580280119,0.17768214,25739.0,25733.0,0.397287]
[1693580280323,0.77711819,25739.0,25733.0,0.55212171]
[1693580280527,0.77711819,25739.0,25733.0,0.52712171]
[1693580280731,0.21937347,25738.0,25733.0,0.52712171]
[1693580280931,0.38708678,25738.0,25733.0,0.372287]
[1693580281144,0.40708678,25737.0,25733.0,0.372287]
[1693580281543,0.15768214,25739.0,25733.0,0.372287]
[1693580281750,0.54476892,25739.0,25734.0,0.15483471]
[1693580282167,0.00098214,25739.0,25734.0,0.15483471]
[1693580282379,0.00098214,25739.0,25734.0,0.70302149]
[1693580282589,0.17742381,25745.0,25735.0,0.3]
[1693580282590,0.13161587,25745.0,25735.0,0.3]
[1693580282791,0.13161587,25745.0,25736.0,0.15483471]
[1693580282792,0.38808086,25744.0,25736.0,0.15483471]
[1693580283154,0.38808086,25744.0,25737.0,0.2276]
[1693580283353,0.1611,25741.0,25737.0,0.38243471]
[1693580283549,0.38708678,25740.0,25734.0,0.037]
[1693580283752,0.53748678,25740.0,25734.0,0.337]
[1693580284001,0.53748678,25740.0,25734.0,0.5646]
[1693580284213,0.53846682,25740.0,25734.0,0.5646]
[1693580284425,0.53846682,25740.0,25734.0,0.71943471]
[1693580284635,0.53846682,25740.0,25734.0,0.037]
[1693580284636,0.6268535,25740.0,25734.0,0.037]
[1693580284839,0.6268535,25740.0,25730.0,0.00024845]
[1693580284840,0.06,25731.0,25730.0,0.00024845]
[1693580285039,0.52708678,25731.0,25730.0,0.00024845]
[1693580285352,1.66566769,25731.0,25730.0,0.00024845]
[1693580285561,1.71616766,25731.0,25730.0,0.00024845]
[1693580285786,1.51000766,25731.0,25730.0,0.00024845]
[1693580285993,1.67180843,25731.0,25730.0,0.00024845]
[1693580286205,1.67180843,25731.0,25719.0,0.00499912]
[1693580286206,0.03500088,25725.0,25719.0,0.00499912]
[1693580286416,0.38708678,25724.0,25719.0,0.00499912]
[1693580286619,0.54818678,25724.0,25719.0,0.00499912]
[1693580287231,0.02,25723.0,25719.0,0.00499912]
[1693580287416,0.40708678,25723.0,25719.0,0.00799912]
[1693580288465,0.40708678,25723.0,25719.0,0.00499912]
[1693580288677,0.26806186,25722.0,25719.0,0.00499912]
[1693580288890,0.38708678,25721.0,25719.0,0.01999912]
[1693580289100,0.02,25723.0,25719.0,0.01999912]
[1693580289314,0.38708678,25722.0,25719.0,0.01999912]
[1693580289523,0.6228316,25722.0,25719.0,0.01999912]
[1693580289731,0.6178316,25722.0,25719.0,0.00499912]
[1693580290150,0.02,25724.0,25719.0,0.00499912]
[1693580290151,0.02,25724.0,25719.0,0.00599912]
[1693580290357,0.40708678,25724.0,25720.0,0.15483471]
[1693580290931,0.0359891,25725.0,25719.0,0.00499912]
[1693580291144,0.42307588,25725.0,25719.0,0.15983383]
[1693580291353,0.00098822,25725.0,25722.0,0.00499912]
[1693580291556,0.00098822,25725.0,25722.0,0.15983383]
[1693580291762,0.159,25727.0,25722.0,0.00499912]
[1693580291983,0.54608678,25727.0,25722.0,0.15983383]
[1693580292188,0.54608678,25727.0,25723.0,0.2403]
[1693580292390,0.54608678,25727.0,25723.0,0.39513471]
[1693580292724,0.54608678,25727.0,25723.0,0.2403]
[1693580293350,0.00098321,25728.0,25724.0,0.15983383]
[1693580293563,0.026,25727.0,25724.0,0.15983383]
[1693580293921,0.026,25727.0,25724.0,0.00499912]
[1693580294954,0.05500088,25730.0,25724.0,0.00499912]
[1693580295159,0.27548977,25726.0,25724.0,0.15983383]
[1693580295367,0.40708678,25725.0,25724.0,0.00799912]
[1693580295809,0.40708678,25725.0,25724.0,0.00499912]
[1693580296015,0.40708678,25725.0,25724.0,0.00899912]
[1693580296228,0.015,25725.0,25724.0,0.00899912]
[1693580296430,0.33409331,25730.0,25724.0,0.00899912]
[1693580296637,0.22004649,25726.0,25724.0,0.15483471]
[1693580296841,0.39008678,25725.0,25724.0,0.027]
[1693580298062,0.38708678,25725.0,25723.0,0.00499912]
[1693580298432,0.38708678,25725.0,25724.0,0.004]
[1693580298845,0.38708678,25725.0,25719.0,0.30499912]
[1693580299102,0.02,25724.0,25721.0,0.00499912]
[1693580299258,0.02,25724.0,25723.0,0.027]
[1693580299456,0.24584427,25724.0,25723.0,0.027]
[1693580299654,0.02,25724.0,25721.0,0.00499912]
[1693580299865,0.02,25726.0,25721.0,0.00499912]
[1693580300061,0.003,25725.0,25721.0,0.00499912]
[1693580300286,0.19870553,25724.0,25721.0,0.00499912]
[1693580300494,0.67188364,25723.0,25721.0,0.00499912]
[1693580301499,0.67188364,25723.0,25721.0,0.02099912]
[1693580301886,0.67188364,25723.0,25718.0,0.2576]
[1693580302085,0.27333565,25722.0,25718.0,0.2576]
[1693580302339,0.66042243,25722.0,25721.0,0.025]
[1693580302750,0.38708678,25722.0,25718.0,0.2576]
[1693580303129,0.02,25723.0,25718.0,0.2826]
[1693580303130,0.024,25723.0,25718.0,0.2826]
[1693580303333,0.41108678,25723.0,25718.0,0.43743471]
[1693580303553,0.004,25723.0,25718.0,0.43743471]
[1693580303935,0.004,25723.0,25718.0,0.2826]
[1693580304909,0.00060377,25724.0,25718.0,0.2576]
[1693580305115,0.004,25722.0,25718.0,0.43743471]
[1693580305315,0.004,25722.0,25718.0,0.2826]
[1693580305641,0.38769055,25724.0,25718.0,0.2576]
[1693580305847,0.40708678,25723.0,25718.0,0.41243471]
[1693580306046,0.41108678,25723.0,25718.0,0.2826]
[1693580306524,0.40708678,25723.0,25718.0,0.41243471]
[1693580306750,0.40708678,25723.0,25718.0,0.43743471]
[1693580307143,0.00460377,25724.0,25718.0,0.43743471]
[1693580307510,0.00460377,25724.0,25719.0,0.15483471]
[1693580308113,0.00460377,25724.0,25718.0,0.2826]
[1693580308114,0.00060377,25724.0,25718.0,0.2576]
[1693580308325,0.004,25723.0,25718.0,0.43743471]
[1693580308528,0.004,25723.0,25718.0,0.2826]
[1693580308737,0.00060377,25724.0,25718.0,0.2576]
[1693580308909,0.00060377,25724.0,25718.0,0.41243471]
[1693580309111,0.00460377,25724.0,25719.0,0.025]
[1693580309308,0.00460377,25724.0,25719.0,0.17983471]
[1693580309667,0.00060377,25724.0,25719.0,0.15483471]
[1693580309860,0.00460377,25724.0,25719.0,0.15483471]
[1693580310467,0.00460377,25724.0,25718.0,0.2826]
[1693580310789,0.00460377,25724.0,25718.0,0.43743471]
[1693580311015,0.24775805,25724.0,25718.0,0.2826]
[1693580311221,0.38708678,25723.0,25718.0,0.2576]
[1693580311426,0.62372352,25723.0,25719.0,0.025]
[1693580311633,0.38708678,25723.0,25719.0,0.025]
[1693580311837,0.38708678,25723.0,25718.0,0.2576]
[1693580312258,0.38708678,25723.0,25718.0,0.2826]
[1693580312664,0.38708678,25723.0,25718.0,0.2576]
[1693580313076,0.39108678,25723.0,25718.0,0.2826]
[1693580313284,0.39108678,25723.0,25718.0,0.43743471]
[1693580313510,0.39108678,25723.0,25718.0,0.2826]
[1693580313821,0.39108678,25723.0,25718.0,0.43743471]
[1693580314019,0.004,25723.0,25718.0,0.43743471]
[1693580314868,0.004,25723.0,25718.0,0.2826]
[1693580315689,0.004,25723.0,25718.0,0.43743471]
[1693580316129,0.004,25723.0,25718.0,0.2826]
[1693580316349,0.004,25723.0,25718.0,0.59883471]
[1693580316983,0.004,25723.0,25718.0,0.444]
[1693580317412,0.004,25723.0,25720.0,0.02]
[1693580317634,0.004,25723.0,25722.0,0.1614]
[1693580317843,0.004,25723.0,25722.0,0.4614]
[1693580318469,0.1586,25731.0,25722.0,0.4614]
[1693580318711,0.2223904,25732.0,25722.0,0.4614]
[1693580318712,0.55128678,25730.0,25723.0,0.40623471]
[1693580319135,0.1642,25730.0,25723.0,0.40623471]
[1693580319350,0.0009904,25732.0,25724.0,0.3]
[1693580319580,0.38807718,25732.0,25725.0,0.31623471]
[1693580319801,0.0009904,25732.0,25726.0,0.3]
[1693580320039,0.0009904,25732.0,25727.0,0.40623471]
[1693580320651,0.037,25731.0,25727.0,0.40623471]
[1693580320835,0.037,25731.0,25727.0,0.2514]
[1693580321033,0.1642,25735.0,25727.0,0.2514]
[1693580321274,0.55226898,25735.0,25728.0,0.15483471]
[1693580321476,0.003,25732.0,25728.0,0.15483471]
[1693580321894,0.1651822,25735.0,25730.0,0.1614]
[1693580321895,0.0009822,25735.0,25730.0,0.1614]
[1693580322096,0.0009822,25735.0,25731.0,0.15483471]
[1693580322263,0.55290369,25735.0,25729.0,0.14919937]
[1693580322538,0.82258805,25735.0,25729.0,0.14919937]
[1693580322938,0.0109822,25735.0,25729.0,0.14919937]
[1693580323091,0.16581691,25735.0,25729.0,0.14919937]
[1693580323505,0.15581691,25735.0,25729.0,0.14919937]
[1693580323730,0.003,25732.0,25729.0,0.14919937]
[1693580324091,0.15483471,25731.0,25728.0,0.037]
[1693580324556,0.39008678,25732.0,25728.0,0.037]
[1693580324761,0.38708678,25732.0,25727.0,0.2514]
[1693580324971,0.54192149,25732.0,25729.0,0.003]
[1693580325172,0.38708678,25732.0,25729.0,0.003]
[1693580325584,0.1618,25734.0,25729.0,0.003]
[1693580325786,0.38708678,25733.0,25729.0,0.15219937]
[1693580325965,0.1618,25734.0,25729.0,0.15219937]
[1693580326591,0.1618,25734.0,25729.0,0.003]
[1693580326725,0.23960811,25731.0,25729.0,0.003]
[1693580327146,0.54888678,25734.0,25728.0,0.15551]
[1693580327351,0.54888678,25734.0,25728.0,0.30470937]
[1693580327555,0.003,25732.0,25728.0,0.34170937]
[1693580327868,0.003,25732.0,25728.0,0.19251]
[1693580328093,0.31663471,25734.0,25728.0,0.15551]
[1693580328244,0.31763471,25734.0,25728.0,0.32070937]
[1693580328659,0.31763471,25734.0,25728.0,0.30470937]
[1693580328897,0.31663471,25734.0,25728.0,0.30470937]
[1693580329114,0.003,25732.0,25728.0,0.34170937]
[1693580329350,0.003,25732.0,25728.0,0.19251]
[1693580329741,0.03131556,25731.0,25728.0,0.19251]
[1693580330115,0.03131556,25731.0,25728.0,0.57959678]
[1693580330696,0.03131556,25731.0,25729.0,0.1614]
[1693580330848,0.15483471,25734.0,25730.0,0.45999911]
[1693580331078,0.001,25734.0,25731.0,0.1614]
[1693580331282,0.001,25734.0,25732.0,0.3]
[1693580331485,0.0009822,25735.0,25732.0,0.3]
[1693580331888,1.0,25737.0,25732.0,0.83628615]
[1693580332091,1.0,25737.0,25733.0,0.14919937]
[1693580332876,1.0,25737.0,25732.0,0.69008678]
[1693580333127,1.0,25737.0,25732.0,0.83928615]
[1693580333973,1.0,25737.0,25732.0,0.83628615]
[1693580334176,1.024,25737.0,25733.0,0.002]
[1693580334601,0.15483471,25737.0,25732.0,0.3]
[1693580335203,0.15783471,25737.0,25732.0,0.337]
[1693580335592,0.003,25737.0,25733.0,0.55628526]
[1693580335813,0.00099048,25740.0,25736.0,0.1614]
[1693580336062,0.00099048,25740.0,25737.0,0.3]
[1693580336218,0.00099048,25740.0,25737.0,0.44892437]
[1693580336456,0.1584,25742.0,25737.0,0.299725]
[1693580337049,0.27786506,25736.0,25733.0,0.2455]
[1693580337242,0.15483471,25735.0,25733.0,0.2825]
[1693580337479,0.15483471,25734.0,25733.0,0.037]
[1693580337786,0.15483471,25734.0,25731.0,0.936]
[1693580337991,0.1614,25737.0,25731.0,0.936]
[1693580337992,0.15483471,25733.0,25731.0,0.936]
[1693580338412,0.22056822,25732.0,25731.0,0.936]
[1693580338629,0.1518,25736.0,25731.0,0.936]
[1693580338836,0.38708678,25735.0,25731.0,1.08519937]
[1693580339068,0.003,25734.0,25733.0,0.037]
[1693580340285,0.1518,25736.0,25731.0,1.0974]
[1693580340496,0.003,25732.0,25731.0,1.28359937]
[1693580340697,0.003,25732.0,25731.0,1.1344]
[1693580340904,0.003,25732.0,25731.0,0.973]
[1693580341105,0.1518,25736.0,25731.0,0.936]
[1693580341331,0.003,25734.0,25733.0,0.037]
[1693580342142,0.1518,25736.0,25730.0,0.3]
[1693580342344,0.30663471,25736.0,25730.0,0.44919937]
[1693580342681,0.30762631,25736.0,25730.0,0.44919937]
[1693580343520,0.003,25732.0,25731.0,0.037]
[1693580344276,0.15483471,25735.0,25730.0,0.3]
[1693580344512,0.1548,25736.0,25730.0,0.64059937]
[1693580344727,0.30963471,25736.0,25730.0,0.64059937]
[1693580344946,0.52207828,25736.0,25730.0,0.47919937]
[1693580345149,0.26853518,25735.0,25730.0,0.44919937]
[1693580345350,0.26853518,25735.0,25731.0,0.037]
[1693580345351,0.003,25732.0,25731.0,0.037]
[1693580346605,0.28051239,25732.0,25731.0,0.037]
[1693580346756,0.27751239,25732.0,25731.0,0.155498]
[1693580347795,0.28051239,25732.0,25731.0,0.037]
[1693580348197,0.27751239,25732.0,25729.0,0.3]
[1693580348608,0.28051239,25732.0,25731.0,0.037]
[1693580348840,0.003,25732.0,25731.0,0.037]
[1693580356425,0.003,25732.0,25731.0,0.337]
[1693580357061,0.003,25732.0,25731.0,0.332]
[1693580357507,0.15569,25738.0,25731.0,0.39199911]
[1693580357758,0.15569,25738.0,25733.0,0.1614]
[1693580357957,0.00099,25738.0,25737.0,0.1614]
[1693580358161,0.09144973,25743.0,25737.0,0.61059937]
[1693580358365,0.0924398,25743.0,25738.0,0.14919937]
[1693580358568,0.0924398,25743.0,25738.0,0.38999937]
[1693580358791,0.0924398,25743.0,25740.0,0.1614]
[1693580358925,0.0924398,25743.0,25741.0,0.14919937]
[1693580358926,0.00099007,25743.0,25741.0,0.14919937]
[1693580359159,0.20375996,25743.0,25738.0,0.2408]
[1693580359364,0.20276989,25743.0,25738.0,0.38999937]
[1693580359565,0.09144973,25743.0,25738.0,0.38999937]
[1693580359966,0.39252265,25744.0,25738.0,0.38999937]
[1693580360168,0.54735736,25744.0,25738.0,0.38999937]
[1693580360394,0.41018277,25744.0,25738.0,0.38999937]
[1693580360789,0.001,25743.0,25738.0,0.40999937]
[1693580360990,0.15583471,25743.0,25738.0,0.2608]
[1693580361278,0.15483471,25743.0,25738.0,0.2408]
[1693580361480,0.09144973,25743.0,25738.0,0.39699937]
[1693580361717,0.09144973,25743.0,25738.0,0.2478]
[1693580361925,0.39252265,25744.0,25738.0,0.63488678]
[1693580362099,0.00099833,25744.0,25740.0,0.1614]
[1693580362272,0.00099833,25744.0,25741.0,0.3]
[1693580362747,0.39062432,25746.0,25741.0,0.3]
[1693580362957,0.22862432,25745.0,25741.0,0.44919937]
[1693580363141,0.22862432,25745.0,25741.0,0.3]
[1693580363462,0.001,25743.0,25739.0,0.31999911]
[1693580363886,0.001,25743.0,25739.0,0.48139911]
[1693580364144,0.001,25743.0,25739.0,0.86848589]
[1693580364343,0.001,25743.0,25740.0,0.38708678]
[1693580364543,0.09144973,25745.0,25741.0,0.3]
[1693580364755,0.09644973,25745.0,25741.0,0.83628615]
[1693580364958,0.09644973,25745.0,25741.0,0.68708678]
[1693580366414,0.39062432,25746.0,25741.0,0.68708678]
[1693580366664,0.001,25743.0,25741.0,0.83628615]
[1693580366877,0.001,25743.0,25742.0,0.2478]
[1693580367085,0.25344973,25746.0,25742.0,0.5478]
[1693580367292,0.25344973,25746.0,25743.0,0.3]
[1693580367511,0.162,25746.0,25743.0,0.3]
[1693580368135,0.167,25746.0,25743.0,0.3]
[1693580369203,0.005,25746.0,25743.0,0.3]
[1693580369418,0.005,25746.0,25743.0,0.84848678]
[1693580369633,0.00098872,25747.0,25743.0,0.84848678]
[1693580370077,0.00098872,25747.0,25743.0,0.88848589]
[1693580370308,0.005,25746.0,25744.0,0.38708678]
[1693580370541,0.005,25746.0,25745.0,0.3]
[1693580370750,0.24484973,25749.0,25745.0,0.3]
[1693580370955,0.24484973,25749.0,25745.0,0.44919937]
[1693580371157,0.38202432,25749.0,25745.0,0.3]
[1693580371359,0.24484973,25749.0,25745.0,0.3]
[1693580371590,0.23938175,25746.0,25745.0,0.3]
[1693580371820,0.23938175,25746.0,25744.0,0.3]
[1693580372029,0.23938175,25746.0,25743.0,0.007]
[1693580372030,0.23938175,25746.0,25743.0,0.307]
[1693580372446,0.23938175,25746.0,25743.0,0.3]
[1693580373193,0.24038175,25746.0,25745.0,0.037]
[1693580373595,0.001,25746.0,25745.0,0.037]
[1693580373801,0.09144973,25748.0,25743.0,0.3]
[1693580374016,0.001,25746.0,25743.0,0.48619937]
[1693580374209,0.001,25746.0,25743.0,0.337]
[1693580374454,0.09144973,25748.0,25743.0,0.3]
[1693580374648,0.30640083,25748.0,25743.0,0.44919937]
[1693580375516,0.23676465,25747.0,25743.0,0.3]
[1693580375717,0.39159936,25747.0,25743.0,0.3]
[1693580376035,0.39159936,25747.0,25745.0,0.037]
[1693580376036,0.001,25746.0,25745.0,0.037]
[1693580376189,0.001,25746.0,25741.0,0.07126789]
[1693580376190,0.001,25746.0,25741.0,0.03126878]
[1693580376397,0.15483471,25745.0,25740.0,0.2571]
[1693580376597,0.54192149,25745.0,25743.0,0.037]
[1693580376824,0.55338678,25745.0,25743.0,0.037]
[1693580377036,0.55338678,25745.0,25739.0,0.61709911]
[1693580377237,0.76546041,25744.0,25739.0,0.3]
[1693580377444,0.76546041,25744.0,25741.0,0.037]
[1693580377654,0.7769257,25744.0,25741.0,0.037]
[1693580378531,0.15483471,25743.0,25741.0,0.037]
[1693580378735,0.54848678,25742.0,25741.0,0.037]
[1693580378936,0.56848678,25742.0,25741.0,0.037]
[1693580379345,0.59199551,25742.0,25741.0,0.037]
[1693580379910,0.85645752,25742.0,25738.0,0.936]
[1693580380113,0.02,25741.0,25739.0,0.037]
[1693580380313,0.38708678,25740.0,25739.0,0.037]
[1693580380515,0.40708678,25740.0,25739.0,0.037]
[1693580380737,0.40708678,25740.0,25733.0,0.2511]
[1693580380953,0.40708678,25740.0,25738.0,0.037]
[1693580380954,0.17483471,25739.0,25738.0,0.037]
[1693580381100,0.40708678,25739.0,25738.0,0.037]
[1693580381529,0.40708678,25739.0,25733.0,0.2511]
[1693580381739,0.54192149,25738.0,25733.0,0.3192671]
[1693580382392,0.54192149,25738.0,25734.0,0.3]
[1693580382592,0.23340826,25737.0,25734.0,0.3]
[1693580384264,0.23440826,25737.0,25734.0,0.337]
[1693580384525,0.001,25737.0,25734.0,0.337]
[1693580385616,0.27072363,25737.0,25734.0,0.337]
[1693580387132,0.27072363,25737.0,25734.0,0.037]
[1693580387133,0.54292149,25737.0,25734.0,0.037]
[1693580387381,0.38708678,25736.0,25734.0,0.037]
[1693580387573,0.63161385,25736.0,25734.0,0.037]
[1693580387769,0.54192149,25736.0,25734.0,0.037]
[1693580387973,0.1814,25735.0,25734.0,0.037]
[1693580388175,0.56848678,25735.0,25728.0,0.9715]
[1693580388374,0.1614,25733.0,25728.0,0.9715]
[1693580388574,0.56192149,25732.0,25728.0,0.9715]
[1693580389263,0.40708678,25732.0,25728.0,0.9715]
[1693580390482,0.26839208,25731.0,25728.0,0.9715]
[1693580390681,0.65547886,25731.0,25728.0,1.0085]
[1693580391384,0.65547886,25731.0,25728.0,0.9715]
[1693580392386,0.65547886,25731.0,25728.0,1.00276232]
[1693580392747,0.65747886,25731.0,25728.0,1.03976232]
[1693580392946,0.002,25731.0,25728.0,1.03976232]
[1693580396334,0.40477424,25731.0,25728.0,1.03976232]
[1693580396534,0.002,25731.0,25728.0,1.03976232]
[1693580396717,0.23596325,25731.0,25728.0,1.03976232]
[1693580396919,0.23596325,25731.0,25728.0,1.0085]
[1693580397576,0.002,25731.0,25728.0,1.0085]
[1693580398157,0.002,25731.0,25728.0,1.16401]
[1693580399244,0.23750001,25731.0,25728.0,1.16401]
[1693580399726,0.21879798,25730.0,25728.0,1.16401]
[1693580399928,0.21879798,25730.0,25728.0,1.0085]
[1693580400330,0.002,25731.0,25728.0,1.0085]
[1693580400534,0.002,25731.0,25728.0,1.2436]
[1693580400710,0.02,25732.0,25728.0,1.2066]
[1693580400914,0.2456828,25730.0,25728.0,1.2066]
[1693580401676,0.63827016,25731.0,25728.0,1.2066]
[1693580401879,0.25239466,25730.0,25728.0,0.9715]
[1693580402098,0.25439466,25730.0,25728.0,1.0085]
[1693580402641,0.25239466,25730.0,25728.0,0.9715]
[1693580402863,0.25239466,25730.0,25728.0,1.0085]
[1693580403499,0.25239466,25730.0,25728.0,0.9715]
[1693580403712,0.25239466,25730.0,25728.0,1.15769937]
[1693580403713,0.002,25730.0,25728.0,1.15769937]
[1693580403921,0.00098423,25735.0,25729.0,0.421]
[1693580404128,0.00098423,25735.0,25731.0,0.05999911]
[1693580404343,1.0,25739.0,25731.0,0.35999911]
[1693580404559,0.00098411,25739.0,25731.0,0.35999911]
[1693580404775,0.00098411,25739.0,25731.0,0.51547311]
[1693580404979,0.1593,25741.0,25731.0,0.55412311]
[1693580405184,0.1602854,25741.0,25735.0,0.121]
[1693580405384,0.15512862,25741.0,25735.0,0.121]
[1693580405593,0.15512862,25741.0,25736.0,0.2388]
[1693580405794,0.20381266,25740.0,25736.0,0.2388]
[1693580406209,0.32481266,25740.0,25736.0,0.2388]
[1693580406823,0.71189944,25740.0,25736.0,0.2388]
[1693580407036,0.71189944,25740.0,25734.0,0.121]
[1693580407037,0.54192149,25739.0,25734.0,0.121]
[1693580407244,0.72064149,25739.0,25736.0,0.038]
[1693580407443,0.1612,25737.0,25736.0,0.038]
[1693580407599,0.56828678,25737.0,25736.0,0.038]
[1693580408017,0.74512678,25737.0,25736.0,0.038]
[1693580408210,1.19843343,25737.0,25736.0,0.038]
[1693580408433,1.40622468,25737.0,25736.0,0.038]
[1693580408641,1.39332468,25737.0,25736.0,0.038]
[1693580408839,1.38312468,25737.0,25730.0,0.14919937]
[1693580409041,0.72002149,25736.0,25730.0,0.14919937]
[1693580409220,0.56518678,25736.0,25734.0,0.037]
[1693580409423,0.54518678,25736.0,25734.0,0.037]
[1693580409747,0.54518678,25736.0,25730.0,0.155498]
[1693580409953,0.02,25735.0,25731.0,0.2441]
[1693580410162,0.38708678,25734.0,25731.0,0.2441]
[1693580410366,0.40708678,25735.0,25731.0,0.23050467]
[1693580410772,0.40708678,25735.0,25734.0,0.03]
[1693580412032,0.40708678,25735.0,25731.0,0.23050467]
[1693580412033,0.38708678,25735.0,25731.0,0.23050467]
[1693580412276,0.1581,25736.0,25734.0,0.19]
[1693580413101,0.1581,25736.0,25734.0,0.228]
[1693580413528,0.1581,25736.0,25734.0,0.19]
[1693580413936,0.1581,25736.0,25734.0,0.227]
[1693580415012,0.00099289,25741.0,25735.0,0.90828589]
[1693580415221,0.00099289,25741.0,25739.0,0.1612]
[1693580415431,0.00099289,25741.0,25740.0,0.14919937]
[1693580415634,0.09139713,25746.0,25739.0,0.1612]
[1693580415812,0.38708678,25745.0,25740.0,0.14919937]
[1693580416274,0.09238418,25746.0,25740.0,0.14919937]
[1693580416488,0.00098705,25746.0,25742.0,0.1612]
[1693580416707,0.00098705,25746.0,25742.0,0.14919937]
[1693580416921,0.20870966,25745.0,25737.0,0.1824671]
[1693580417137,0.20870966,25745.0,25740.0,0.017]
[1693580417138,0.37165552,25744.0,25740.0,0.017]
[1693580417359,0.38708678,25743.0,25740.0,0.017]
[1693580417540,0.09238418,25746.0,25740.0,0.017]
[1693580417771,0.38708678,25745.0,25740.0,0.017]
[1693580418381,0.38708678,25745.0,25738.0,0.3]
[1693580418587,0.15483471,25744.0,25738.0,0.44919937]
[1693580418801,0.15483471,25744.0,25742.0,0.03]
[1693580418985,0.22457957,25744.0,25742.0,0.03]
[1693580419217,0.22457957,25744.0,25738.0,0.3]
[1693580419346,0.15483471,25743.0,25738.0,0.3]
[1693580419551,0.36887384,25743.0,25738.0,0.33]
[1693580419978,0.36887384,25743.0,25738.0,0.3]
[1693580420181,0.38708678,25744.0,25742.0,0.038]
[1693580420752,0.22947988,25746.0,25742.0,0.038]
[1693580420986,0.38708678,25745.0,25742.0,0.18719937]
[1693580421203,0.38708678,25745.0,25742.0,0.038]
[1693580421405,0.47848391,25745.0,25742.0,0.038]
[1693580421748,0.003,25743.0,25742.0,0.038]
[1693580421949,0.47848391,25745.0,25738.0,0.3]
[1693580422167,0.15483471,25744.0,25738.0,0.44919937]
[1693580422349,0.15483471,25744.0,25738.0,0.48619937]
[1693580422561,0.15483471,25744.0,25742.0,0.037]
[1693580422771,0.00098705,25746.0,25738.0,0.74708589]
[1693580422974,0.00098705,25746.0,25741.0,0.1612]
[1693580422975,0.0003853,25743.0,25741.0,0.1612]
[1693580423490,0.15582176,25746.0,25742.0,0.3]
[1693580423704,0.00098705,25746.0,25742.0,0.44919937]
[1693580423918,0.00098705,25746.0,25743.0,0.54828678]
[1693580424126,0.00098705,25746.0,25743.0,0.38708678]
[1693580424334,0.23819713,25749.0,25742.0,0.3]
[1693580424537,0.78110317,25749.0,25743.0,0.14919937]
[1693580424749,0.002,25744.0,25743.0,0.14919937]
[1693580424991,0.62626846,25749.0,25743.0,0.3]
[1693580425203,0.14778455,25749.0,25744.0,0.44919937]
[1693580425409,0.002,25746.0,25744.0,0.44919937]
[1693580425609,0.14778455,25749.0,25744.0,0.3]
[1693580425819,0.14778455,25749.0,25744.0,0.44919937]
[1693580426659,0.14778455,25749.0,25744.0,0.48619937]
[1693580426861,0.00060766,25748.0,25744.0,0.48619937]
[1693580427085,0.00060766,25748.0,25745.0,0.38708678]
[1693580427300,6.6e-07,25748.0,25746.0,0.4612]
[1693580427564,6.6e-07,25748.0,25746.0,0.90828589]
[1693580427745,6.6e-07,25748.0,25747.0,0.12246799]
[1693580427948,0.00053183,25748.0,25747.0,0.42246799]
[1693580428156,0.00053183,25748.0,25747.0,0.3]
[1693580428781,0.0197,25750.0,25747.0,0.3]
[1693580428990,0.0197,25750.0,25746.0,0.09699911]
[1693580428991,0.0197,25750.0,25746.0,0.39699911]
[1693580429411,0.0197,25750.0,25747.0,0.037]
[1693580429620,0.0197,25750.0,25747.0,0.3]
[1693580429836,0.00053132,25749.0,25747.0,0.337]
[1693580430242,0.00053132,25749.0,25747.0,0.3]
[1693580430505,0.90806542,25749.0,25747.0,0.037]
[1693580430710,0.38708678,25748.0,25747.0,0.075]
[1693580430916,0.75323071,25749.0,25747.0,0.075]
[1693580431130,0.75323071,25749.0,25747.0,0.038]
[1693580431552,0.40708678,25748.0,25747.0,0.075]